bitfinex-derivatives/quotes_BNBF0:USTF0_20250609
["timestamp","ask_amount","ask_price","bid_price","bid_amount"]
[1749432261390,0.2672575,651.29,650.12,3.81921911]
[1749432261793,0.2672575,651.29,650.11,4.08652999]
[1749432262996,0.2672575,651.29,650.11,0.26731088]
[1749432268903,0.2672575,651.29,650.22,3.81921911]
[1749432269703,0.2672575,651.29,650.23,3.81921911]
[1749432271606,0.2672575,651.29,650.24,3.81921911]
[1749432273404,0.2672575,651.29,650.23,3.81921911]
[1749432276610,0.2672575,651.29,650.22,3.81921911]
[1749432277009,0.2672575,651.29,650.23,3.81921911]
[1749432277414,0.2672575,651.29,650.11,0.26731088]
[1749432277615,0.2672575,651.29,650.12,0.30763551]
[1749432287329,0.2672575,651.29,650.16,3.81921911]
[1749432288228,0.2672575,651.29,650.17,3.81921911]
[1749432290425,0.2672575,651.29,650.18,3.81921911]
[1749432290934,0.2672575,651.29,650.24,3.81921911]
[1749432291428,0.2672575,651.29,650.29,3.81921911]
[1749432292732,0.2672575,651.29,650.34,3.81921911]
[1749432293231,0.2672575,651.29,650.39,3.81921911]
[1749432294031,0.2672575,651.29,650.35,3.81921911]
[1749432294632,0.2672575,651.29,650.36,3.81921911]
[1749432295833,0.2672575,651.29,650.43,3.81921911]
[1749432296333,0.2672575,651.29,650.44,3.81921911]
[1749432297730,0.2672575,651.29,650.45,3.81921911]
[1749432299534,0.2672575,651.29,650.46,3.81921911]
[1749432302541,0.2672575,651.29,650.47,3.81921911]
[1749432303743,0.2672575,651.29,650.48,3.81921911]
[1749432304143,0.2672575,651.29,650.43,3.81921911]
[1749432305541,0.2672575,651.29,650.44,3.81921911]
[1749432308046,0.2672575,651.29,650.45,3.81921911]
[1749432312951,0.2672575,651.29,650.32,3.81921911]
[1749432313452,0.2672575,651.29,650.33,3.81921911]
[1749432313654,0.2672575,651.29,650.34,3.81921911]
[1749432315558,0.2672575,651.29,650.26,3.81921911]
[1749432315955,0.2672575,651.29,650.25,3.81921911]
[1749432316855,0.2672575,651.29,650.19,3.81921911]
[1749432319563,0.2672575,651.29,650.12,0.30763551]
[1749432319564,0.2672575,651.29,650.2,3.81921911]
[1749432319863,0.2672575,651.29,650.21,0.30759293]
[1749432324161,0.2672575,651.29,650.22,3.81921911]
[1749432324361,0.2672575,651.29,650.23,0.30758347]
[1749432324959,0.2672575,651.29,650.27,3.81921911]
[1749432325158,0.2672575,651.29,650.28,0.30755982]
[1749432327262,0.2672575,651.29,650.31,3.81921911]
[1749432329067,0.2672575,651.29,650.3,3.81921911]
[1749432329363,0.2672575,651.29,650.3,4.12676947]
[1749432329963,0.2672575,651.29,650.52,3.81921911]
[1749432330766,0.2672575,651.29,650.51,3.81921911]
[1749432331168,0.2672575,651.29,650.54,3.81921911]
[1749432332666,0.2672575,651.29,650.55,3.81921911]
[1749432333569,0.2672575,651.29,650.56,3.81921911]
[1749432334065,0.2672575,651.29,650.65,3.81921911]
[1749432334970,0.2672575,651.29,650.7,3.81921911]
[1749432336568,0.2672575,651.29,650.69,3.81921911]
[1749432337074,0.2672575,651.29,650.64,3.81921911]
[1749432339469,0.2672575,651.29,650.63,3.81921911]
[1749432340274,0.2672575,651.29,650.56,3.81921911]
[1749432341272,0.2672575,651.29,650.49,3.81921911]
[1749432344280,0.2672575,651.29,650.37,3.81921911]
[1749432345275,0.2672575,651.29,650.33,3.81921911]
[1749432345579,0.2672575,651.29,650.37,3.81921911]
[1749432346578,0.2672575,651.29,650.36,3.81921911]
[1749432346981,0.2672575,651.29,650.37,3.81921911]
[1749432348378,0.2672575,651.29,650.3,0.30755036]
[1749432358393,0.2672575,651.29,650.47,3.81921911]
[1749432359996,0.2672575,651.29,650.44,3.81921911]
[1749432366199,0.2672575,651.29,650.3,0.30755036]
[1749432366698,0.2672575,651.29,650.43,3.82530838]
[1749432367898,0.2672575,651.29,650.47,3.82530838]
[1749432369096,0.2672575,651.29,650.3,0.30755036]
[1749432369097,0.2672575,651.29,650.37,3.82530838]
[1749432369302,0.2672575,651.29,650.42,3.82530838]
[1749432370203,0.2672575,651.29,650.3,0.30755036]
[1749432370204,0.2672575,651.29,650.45,3.82530838]
[1749432370601,0.2672575,651.29,650.46,3.82530838]
[1749432371505,0.2672575,651.29,650.45,3.82530838]
[1749432374311,0.2672575,651.29,650.47,3.82530838]
[1749432374809,0.2672575,651.29,650.57,3.82530838]
[1749432376510,0.2672575,651.29,650.58,3.82530838]
[1749432376911,0.2672575,651.29,650.59,3.82530838]
[1749432377813,0.2672575,651.29,650.41,3.82530838]
[1749432378915,0.2672575,651.29,650.42,3.82530838]
[1749432379109,0.2672575,651.29,650.44,3.82530838]
[1749432379808,0.2672575,651.29,650.45,3.82530838]
[1749432380208,0.2672575,651.29,650.3,0.30755036]
[1749432380209,0.2672575,651.29,650.44,3.82530838]
[1749432381117,0.2672575,651.29,650.43,3.82530838]
[1749432381513,0.2672575,651.29,650.42,3.82530838]
[1749432383615,0.2672575,651.29,650.44,3.82530838]
[1749432384518,0.2672575,651.29,650.35,3.82530838]
[1749432384724,0.2672575,651.29,650.36,0.30752198]
[1749432387719,0.2672575,651.29,650.64,3.82530838]
[1749432388617,0.2672575,651.29,650.65,3.82530838]
[1749432389019,0.2672575,651.29,650.66,3.82530838]
[1749432389922,0.2672575,651.29,650.68,3.82530838]
[1749432390424,0.2672575,651.29,650.7,3.82530838]
[1749432390924,0.2672575,651.29,650.73,3.82530838]
[1749432393620,0.2672575,651.29,650.51,5.35543173]
[1749432393621,0.2672575,651.29,650.72,3.82530838]
[1749432394921,0.2672575,651.29,650.71,3.82530838]
[1749432395320,0.2672575,651.29,650.72,3.82530838]
[1749432395925,0.2672575,651.29,650.71,3.82530838]
[1749432396727,0.2672575,651.29,650.72,3.82530838]
[1749432397224,0.2672575,651.29,650.66,3.82530838]
[1749432397627,0.2672575,651.29,650.61,3.82530838]
[1749432398226,0.2672575,651.29,650.63,3.82530838]
[1749432398624,0.2672575,651.29,650.62,3.82530838]
[1749432399528,0.2672575,651.29,650.66,3.82530838]
[1749432399824,0.2672575,651.29,650.65,3.82530838]
[1749432400228,0.2672575,651.29,650.74,3.82530838]
[1749432400926,0.2672575,651.29,650.73,3.82530838]
[1749432401325,0.2672575,651.29,650.7,3.82530838]
[1749432403528,0.2672575,651.29,650.67,3.82530838]
[1749432404026,0.2672575,651.29,650.66,3.82530838]
[1749432404424,0.2672575,651.29,650.73,3.82530838]
[1749432404926,0.2672575,651.29,650.75,3.82530838]
[1749432405327,0.30695561,651.56,650.76,3.82530838]
[1749432405530,0.26719286,651.31,650.76,3.82530838]
[1749432406132,0.26719286,651.31,650.77,3.82530838]
[1749432406729,0.26719286,651.31,650.76,3.82530838]
[1749432407533,0.26719286,651.31,650.79,3.82530838]
[1749432408629,0.26719286,651.31,650.8,3.82530838]
[1749432408830,0.26719286,651.31,650.81,3.82530838]
[1749432409433,0.26719286,651.31,650.82,3.82530838]
[1749432409731,0.26719286,651.31,650.81,3.82530838]
[1749432410231,0.26719286,651.31,650.82,3.82530838]
[1749432410634,0.26719286,651.31,650.84,3.82530838]
[1749432414838,0.26719286,651.31,650.76,3.82530838]
[1749432418844,0.26719286,651.31,650.77,3.82530838]
[1749432423848,0.26719286,651.31,650.55,5.35543173]
[1749432424249,0.26719286,651.31,650.37,3.82530838]
[1749432424449,0.26719286,651.31,650.38,0.30751253]
[1749432424649,0.26719286,651.31,650.4,3.82530838]
[1749432424946,0.26719286,651.31,650.41,0.30749834]
[1749432429353,0.26719286,651.31,650.41,4.13280672]
[1749432431653,0.26719286,651.31,650.42,3.82530838]
[1749432431854,0.26719286,651.31,650.43,0.30748889]
[1749432434853,0.26719286,651.31,650.44,3.82530838]
[1749432435156,0.26719286,651.31,650.45,0.30747943]
[1749432435754,0.26719286,651.31,650.45,4.13278781]
[1749432437160,0.26719286,651.31,650.46,3.82530838]
[1749432437360,0.26719286,651.31,650.46,4.13278309]
[1749432442461,0.26719286,651.31,650.82,3.82530838]
[1749432443864,0.26719286,651.31,650.83,3.82530838]
[1749432444762,0.26719286,651.31,650.81,3.82530838]
[1749432445567,0.26719286,651.31,650.76,3.82530838]
[1749432446869,0.26719286,651.31,650.83,3.82530838]
[1749432447471,0.26719286,651.31,650.6,5.35543173]
[1749432447472,0.26719286,651.31,650.81,3.82530838]
[1749432449671,0.26719286,651.31,650.78,3.82530838]
[1749432450166,0.26719286,651.31,650.79,3.82530838]
[1749432451872,0.26719286,651.31,650.8,3.82530838]
[1749432454676,0.26719286,651.31,650.82,3.82530838]
[1749432455177,0.26719286,651.31,650.85,3.82530838]
[1749432456075,0.26719286,651.31,650.86,3.82530838]
[1749432456377,0.26719286,651.31,650.62,5.35543173]
[1749432456378,0.26719286,651.31,650.84,3.82530838]
[1749432456879,0.26719286,651.31,650.83,3.82530838]
[1749432458674,0.26719286,651.31,650.8,3.82530838]
[1749432459280,0.26719286,651.31,650.81,3.82530838]
[1749432459580,0.26719286,651.31,650.83,3.82530838]
[1749432461885,0.05679771,651.31,650.83,3.82530838]
[1749432462083,0.30695561,651.56,650.83,3.82530838]
[1749432462280,0.30695561,651.56,650.94,3.82530838]
[1749432464584,0.30695561,651.56,650.85,3.82530838]
[1749432465187,0.26716414,651.39,650.85,3.82530838]
[1749432466483,0.26716414,651.39,650.87,3.82530838]
[1749432466791,0.26716414,651.39,650.88,3.82530838]
[1749432489006,0.26716414,651.39,650.89,3.82530838]
[1749432490506,0.26716414,651.39,650.88,3.82530838]
[1749432491809,0.26716414,651.39,650.89,3.82530838]
[1749432492713,0.26716414,651.39,650.88,3.82530838]
[1749432493108,0.26716414,651.39,650.89,3.82530838]
[1749432494011,0.26716414,651.39,650.88,3.82530838]
[1749432498416,0.26716414,651.39,650.87,3.82530838]
[1749432499016,0.26716414,651.39,650.88,3.82530838]
[1749432504019,0.26716414,651.39,650.86,3.82530838]
[1749432504824,0.26716414,651.39,650.84,3.82530838]
[1749432507326,0.26716414,651.39,650.83,3.82530838]
[1749432507627,0.26716414,651.39,650.87,3.82530838]
[1749432509324,0.26716414,651.39,650.88,3.82530838]
[1749432509827,0.26716414,651.39,650.87,3.82530838]
[1749432513528,0.26716414,651.39,650.82,3.82530838]
[1749432513828,0.26716414,651.39,650.83,3.82530838]
[1749432514425,0.26716414,651.39,650.84,3.82530838]
[1749432517525,0.26716414,651.39,650.81,3.82530838]
[1749432519731,0.26716414,651.39,650.82,3.82530838]
[1749432523234,0.26716414,651.39,650.87,3.82530838]
[1749432523830,0.26716414,651.39,650.69,3.82530838]
[1749432524235,0.26716414,651.39,650.64,3.82530838]
[1749432524732,0.26716414,651.39,650.65,3.82530838]
[1749432525136,0.26716414,651.39,650.64,3.82530838]
[1749432525536,0.26716414,651.39,650.63,3.82530838]
[1749432525936,0.26716414,651.39,650.64,3.82530838]
[1749432526338,0.26716414,651.39,650.63,3.82530838]
[1749432528336,0.26716414,651.39,650.62,3.82530838]
[1749432530338,0.26716414,651.39,650.61,3.82530838]
[1749432530944,0.26716414,651.39,650.54,3.82530838]
[1749432533542,0.26716414,651.39,650.62,3.82530838]
[1749432533944,0.26716414,651.39,650.65,3.82530838]
[1749432534545,0.26716414,651.39,650.68,3.82530838]
[1749432537047,0.26716414,651.39,650.69,3.82530838]
[1749432540658,0.26716414,651.39,650.8,3.82530838]
[1749432543953,0.26716414,651.39,650.82,3.82530838]
[1749432544353,0.26716414,651.39,650.76,3.82530838]
[1749432544755,0.26716414,651.39,650.77,3.82530838]
[1749432545455,0.26716414,651.39,650.78,3.82530838]
[1749432545656,0.26716414,651.39,650.77,3.82530838]
[1749432546258,0.26716414,651.39,650.74,3.82530838]
[1749432549362,0.26716414,651.39,650.75,3.82530838]
[1749432554263,0.26716414,651.39,650.85,3.82530838]
[1749432554563,0.26716414,651.39,650.84,3.82530838]
[1749432555869,0.26716414,651.39,650.83,3.82530838]
[1749432556269,0.26716414,651.39,650.84,3.82530838]
[1749432558271,0.26716414,651.39,650.78,3.82530838]
[1749432558676,0.26716414,651.39,650.77,3.82530838]
[1749432559677,0.26716414,651.39,650.78,3.82530838]
[1749432560178,0.26716414,651.39,650.77,3.82530838]
[1749432561474,0.26716414,651.39,650.78,3.82530838]
[1749432562279,0.26716414,651.39,650.77,3.82530838]
[1749432563782,0.26716414,651.39,650.78,3.82530838]
[1749432565486,0.26716414,651.39,650.79,3.82530838]
[1749432566482,0.26716414,651.39,650.82,3.82530838]
[1749432567084,0.30695561,651.56,650.82,3.82530838]
[1749432567285,2.38444283,652.03,650.46,0.30747471]
[1749432567486,0.26715697,651.46,650.46,0.30747471]
[1749432567685,1.11392572,652.01,650.46,0.30747471]
[1749432567890,0.26715389,651.46,650.46,0.30747471]
[1749432568286,1.11392572,651.98,650.46,0.30747471]
[1749432568486,0.26715594,651.46,650.46,0.30747471]
[1749432568687,1.11392572,651.96,650.47,3.82530838]
[1749432568993,0.26715697,651.46,650.48,0.30746525]
[1749432569287,1.11392572,651.94,650.48,0.30746525]
[1749432569488,0.26715286,651.46,650.48,0.30746525]
[1749432569791,1.11392572,651.92,650.48,0.30746525]
[1749432569988,0.26715492,651.46,650.48,0.30746525]
[1749432570488,1.11392572,651.92,650.48,0.30746525]
[1749432570688,0.26715594,651.46,650.48,0.30746525]
[1749432570888,1.11392572,651.93,650.48,0.30746525]
[1749432571092,0.26715902,651.46,650.48,0.30746525]
[1749432571392,0.30677669,651.94,650.48,0.30746525]
[1749432571589,0.26715799,651.46,650.48,0.30746525]
[1749432571887,1.11392572,651.93,650.57,3.82530838]
[1749432572092,1.11392572,651.93,650.58,0.30741799]
[1749432572292,0.26715697,651.46,650.58,0.30741799]
[1749432572492,0.30677669,651.94,650.58,0.30741799]
[1749432572790,0.26714466,651.46,650.58,0.30741799]
[1749432573089,0.30677669,651.94,650.58,0.30741799]
[1749432573291,0.26714364,651.46,650.58,0.30741799]
[1749432573489,0.30677669,651.94,650.58,0.30741799]
[1749432573689,0.26714466,651.46,650.58,0.30741799]
[1749432574089,0.30677669,651.94,650.58,0.30741799]
[1749432574290,0.26714466,651.46,650.58,0.30741799]
[1749432574595,1.11414713,651.93,650.58,0.30741799]
[1749432574789,0.26714466,651.46,650.58,0.30741799]
[1749432574993,1.11414713,651.93,650.58,0.30741799]
[1749432575190,0.30677669,651.94,650.58,0.30741799]
[1749432575394,0.26714774,651.46,650.58,0.30741799]
[1749432575594,0.30677669,651.94,650.58,0.30741799]
[1749432575791,0.26714671,651.46,650.58,0.30741799]
[1749432576190,0.30677669,651.94,650.58,0.30741799]
[1749432576391,0.26714671,651.46,650.58,0.30741799]
[1749432576590,0.30677669,651.94,650.58,0.30741799]
[1749432576891,0.26715799,651.41,650.63,3.82530838]
[1749432577296,0.30677669,651.94,650.64,3.82530838]
[1749432577497,0.26714876,651.41,650.64,3.82530838]
[1749432577696,0.30677669,651.94,650.7,3.82530838]
[1749432578098,0.26714671,651.41,650.69,3.82530838]
[1749432578298,0.30677669,651.94,650.69,3.82530838]
[1749432578499,0.26714159,651.41,650.69,3.82530838]
[1749432578695,0.30677669,651.94,650.69,3.82530838]
[1749432579001,0.26714159,651.41,650.69,3.82530838]
[1749432579399,0.30677669,651.94,650.69,3.82530838]
[1749432579596,0.26714159,651.41,650.69,3.82530838]
[1749432579799,0.30677669,651.94,650.69,3.82530838]
[1749432580301,0.26714159,651.41,650.69,3.82530838]
[1749432580499,0.30677669,651.94,650.69,3.82530838]
[1749432580699,0.26713441,651.63,650.69,3.82530838]
[1749432580898,0.26713441,651.63,650.68,3.82530838]
[1749432581903,0.26713441,651.63,650.76,3.82530838]
[1749432582197,0.26713441,651.63,650.75,3.82530838]
[1749432583198,0.26713441,651.63,650.78,3.82530838]
[1749432584400,0.26713441,651.63,650.58,0.30741799]
[1749432584401,0.26713441,651.63,650.8,3.82530838]
[1749432585400,0.26713441,651.63,650.81,3.82530838]
[1749432586504,0.26713441,651.63,650.78,3.82530838]
[1749432586702,0.26713441,651.63,650.8,3.82530838]
[1749432587402,0.26713441,651.63,650.77,3.82530838]
[1749432587606,0.26713441,651.63,650.75,3.82530838]
[1749432588002,0.26713441,651.63,650.79,3.82530838]
[1749432590907,0.26713441,651.63,650.81,3.82530838]
[1749432591307,0.26713441,651.63,650.79,3.82530838]
[1749432592204,0.26713441,651.63,650.8,3.82530838]
[1749432593709,0.26713441,651.63,650.81,3.82530838]
[1749432594411,0.26713441,651.63,650.82,3.82530838]
[1749432594910,0.26713441,651.63,650.85,3.82530838]
[1749432596011,0.26713441,651.63,650.62,5.35543173]
[1749432596012,0.26713441,651.63,650.86,3.82530838]
[1749432596211,0.26713441,651.63,650.9,3.82530838]
[1749432597211,0.26713441,651.63,650.93,3.82530838]
[1749432597608,0.26713441,651.63,650.72,5.35543173]
[1749432597609,0.26713441,651.63,650.94,3.82530838]
[1749432598409,0.26713441,651.63,650.95,3.82530838]
[1749432601013,0.26713441,651.63,650.7,3.82530838]
[1749432601415,0.26713441,651.63,650.71,3.82530838]
[1749432602511,0.26713441,651.63,650.68,3.82530838]
[1749432604718,0.26713441,651.63,650.61,3.82530838]
[1749432607612,0.26713441,651.63,650.58,0.30741799]
[1749432611219,0.26713441,651.63,650.63,3.82530838]
[1749432612115,0.26713441,651.63,650.66,3.82530838]
[1749432612519,0.26713441,651.63,650.67,3.82530838]
[1749432612917,0.26713441,651.63,650.7,3.82530838]
[1749432613420,0.26713441,651.63,650.58,0.30741799]
[1749432613421,0.26713441,651.63,650.71,3.82530838]
[1749432614621,0.26713441,651.63,650.77,3.82530838]
[1749432615223,0.26713441,651.63,650.78,3.82530838]
[1749432615621,0.26713441,651.63,650.58,0.30741799]
[1749432616924,0.26713441,651.63,650.6,3.82530838]
[1749432619228,0.26713441,651.63,650.61,3.82530838]
[1749432619729,0.26713441,651.63,650.6,3.82530838]
[1749432621533,0.26713441,651.63,650.61,3.82530838]
[1749432624129,0.26713441,651.63,650.62,3.82530838]
[1749432625432,0.26713441,651.63,650.81,3.82530838]
[1749432626130,0.26713441,651.63,650.8,3.82530838]
[1749432626537,0.26713441,651.63,650.87,3.82530838]
[1749432626938,0.26713441,651.63,650.88,3.82530838]
[1749432629635,0.26713441,651.63,650.63,5.35543173]
[1749432629636,0.26713441,651.63,650.76,3.82530838]
[1749432630039,0.26713441,651.63,650.63,5.35543173]
[1749432630040,0.26713441,651.63,650.81,3.82530838]
[1749432630435,0.26713441,651.63,650.82,3.82530838]
[1749432631042,0.26713441,651.63,650.93,3.82530838]
[1749432632442,0.26713441,651.63,650.95,3.82530838]
[1749432632839,0.26713441,651.63,650.94,3.82530838]
[1749432633747,0.26713441,651.63,650.58,0.30741799]
[1749432633748,0.26713441,651.63,650.96,3.82530838]
[1749432634140,0.26713441,651.63,650.86,3.82530838]
[1749432634540,0.26713441,651.63,650.81,3.82530838]
[1749432635443,0.26713441,651.63,650.8,3.82530838]
[1749432635840,0.26713441,651.63,650.77,3.82530838]
[1749432637040,0.26713441,651.63,650.76,3.82530838]
[1749432637442,0.26713441,651.63,650.77,3.82530838]
[1749432637838,0.26713441,651.63,650.76,3.82530838]
[1749432639740,0.26713441,651.63,650.74,3.82530838]
[1749432640439,0.26713441,651.63,650.73,3.82530838]
[1749432643246,0.26713441,651.63,650.71,3.82530838]
[1749432644147,0.26713441,651.63,650.8,3.82530838]
[1749432644443,0.26713441,651.63,650.78,3.82530838]
[1749432644946,0.26713441,651.63,650.77,3.82530838]
[1749432645947,0.26713441,651.63,650.78,3.82530838]
[1749432646343,0.26713441,651.63,650.79,3.82530838]
[1749432646748,0.26713441,651.63,650.78,3.82530838]
[1749432647249,0.26713441,651.63,650.63,3.82530838]
[1749432647651,0.26713441,651.63,650.62,3.82530838]
[1749432648247,0.26713441,651.63,650.61,3.82530838]
[1749432648649,0.26713441,651.63,650.58,4.13272637]
[1749432649450,0.26713441,651.63,650.59,3.82530838]
[1749432650351,0.26713441,651.63,650.58,4.13272637]
[1749432651350,0.26713441,651.63,650.58,0.30741799]
[1749432661158,0.26713441,651.63,650.68,3.82530838]
[1749432663464,0.26713441,651.63,650.71,3.82530838]
[1749432663866,0.26713441,651.63,650.72,3.82530838]
[1749432664468,0.26713441,651.63,650.71,3.82530838]
[1749432677678,0.26713441,651.63,650.61,3.82530838]
[1749432679474,0.26713441,651.63,650.62,3.82530838]
[1749432679975,0.26713441,651.63,650.71,3.82530838]
[1749432680375,0.26713441,651.63,650.75,3.82530838]
[1749432680781,0.26713441,651.63,650.76,3.82530838]
[1749432681781,0.26713441,651.63,650.74,3.82530838]
[1749432682577,0.26713441,651.63,650.75,3.82530838]
[1749432683581,0.26713441,651.63,650.8,3.82530838]
[1749432684886,0.26713441,651.63,650.87,3.82530838]
[1749432685284,0.26713441,651.63,650.83,3.82530838]
[1749432685890,0.26713441,651.63,650.82,3.82530838]
[1749432686286,0.26713441,651.63,650.81,3.82530838]
[1749432686689,0.26713441,651.63,650.83,3.82530838]
[1749432687190,0.26713441,651.63,650.82,3.82530838]
[1749432687588,0.26713441,651.63,650.79,3.82530838]
[1749432688490,0.26713441,651.63,650.8,3.82530838]
[1749432689392,0.26713441,651.63,650.81,3.82530838]
[1749432689788,0.26713441,651.63,650.82,3.82530838]
[1749432690390,0.26713441,651.63,650.83,3.82530838]
[1749432691690,0.26713441,651.63,650.84,3.82530838]
[1749432694792,0.26713441,651.63,650.76,3.82530838]
[1749432695495,0.26713441,651.63,650.79,3.82530838]
[1749432695692,0.26713441,651.63,650.8,3.82530838]
[1749432702504,0.26713441,651.63,650.79,3.82530838]
[1749432702899,0.26713441,651.63,650.8,3.82530838]
[1749432704699,0.26713441,651.63,650.81,3.82530838]
[1749432711503,0.26713441,651.63,650.6,5.35543173]
[1749432711504,0.26713441,651.63,650.8,3.82530838]
[1749432712808,0.26713441,651.63,650.81,3.82530838]
[1749432715603,0.26713441,651.63,650.79,3.82530838]
[1749432716915,0.26713441,651.63,650.58,0.30741799]
[1749432727014,0.26713441,651.63,650.75,3.82530838]
[1749432727412,0.26713441,651.63,650.78,3.82530838]
[1749432728615,0.26713441,651.63,650.79,3.82530838]
[1749432730314,0.26713441,651.63,650.77,3.82530838]
[1749432730913,0.26713441,651.63,650.73,3.82530838]
[1749432731917,0.26713441,651.63,650.81,3.82530838]
[1749432732719,0.26713441,651.63,650.86,3.82530838]
[1749432733111,0.26713441,651.63,650.85,3.82530838]
[1749432733614,0.26713441,651.63,650.84,3.82530838]
[1749432734619,0.26713441,651.63,650.87,3.82530838]
[1749432738620,0.26713441,651.63,650.85,3.82530838]
[1749432740819,0.26713441,651.63,650.86,3.82530838]
[1749432741923,0.26713441,651.63,650.87,3.82530838]
[1749432744522,1.11196974,651.62,650.87,3.82530838]
[1749432744923,1.11196974,651.62,650.79,3.82530838]
[1749432746320,1.11196974,651.62,650.77,3.82530838]
[1749432746719,1.11196974,651.62,650.76,3.82530838]
[1749432747125,0.26713441,651.63,650.76,3.82530838]
[1749432747333,1.10893632,651.62,650.76,3.82530838]
[1749432748421,0.26713441,651.63,650.76,3.82530838]
[1749432748621,0.26713441,651.63,650.78,3.82530838]
[1749432748825,1.10893632,651.62,650.78,3.82530838]
[1749432749323,0.26713441,651.63,650.78,3.82530838]
[1749432750024,1.10893632,651.62,650.76,3.82530838]
[1749432750521,0.26713441,651.63,650.76,3.82530838]
[1749432750725,1.10893632,651.62,650.74,3.82530838]
[1749432750925,1.10893632,651.61,650.74,3.82530838]
[1749432751224,1.10893632,651.6,650.73,3.82530838]
[1749432751423,1.10893632,651.62,650.73,3.82530838]
[1749432751622,1.10893632,651.61,650.72,3.82530838]
[1749432751821,1.10893632,651.62,650.72,3.82530838]
[1749432752021,1.10893632,651.61,650.72,3.82530838]
[1749432752222,1.10893632,651.62,650.72,3.82530838]
[1749432752421,1.10893632,651.61,650.72,3.82530838]
[1749432752628,1.10893632,651.62,650.72,3.82530838]
[1749432752821,1.10893632,651.61,650.72,3.82530838]
[1749432753025,1.10893632,651.62,650.72,3.82530838]
[1749432753324,1.10893632,651.61,650.72,3.82530838]
[1749432753525,1.10893632,651.62,650.72,3.82530838]
[1749432753827,1.10893632,651.61,650.72,3.82530838]
[1749432754027,1.10893632,651.62,650.72,3.82530838]
[1749432754227,1.10893632,651.61,650.72,3.82530838]
[1749432754427,1.10893632,651.62,650.76,3.82530838]
[1749432754824,1.10893632,651.61,650.64,3.82530838]
[1749432755024,1.10893632,651.6,650.64,3.82530838]
[1749432755229,1.10893632,651.59,650.58,4.13272637]
[1749432755527,0.26713441,651.63,650.58,4.13272637]
[1749432755528,1.10893632,651.58,650.58,4.13272637]
[1749432755725,1.10893632,651.57,650.58,4.13272637]
[1749432756028,1.10893632,651.56,650.58,4.13272637]
[1749432756225,1.10893632,651.55,650.58,4.13272637]
[1749432756424,1.10893632,651.62,650.58,4.13272637]
[1749432756627,1.10893632,651.61,650.58,0.30741799]
[1749432756828,1.10893632,651.6,650.58,0.30741799]
[1749432757029,1.10893632,651.59,650.58,0.30741799]
[1749432757324,1.10893632,651.58,650.58,0.30741799]
[1749432757526,1.10893632,651.57,650.58,0.30741799]
[1749432757725,1.10893632,651.62,650.58,0.30741799]
[1749432757929,1.10893632,651.61,650.58,0.30741799]
[1749432758227,1.10893632,651.6,650.58,0.30741799]
[1749432758425,1.10893632,651.59,650.58,0.30741799]
[1749432758625,1.10893632,651.58,650.58,0.30741799]
[1749432758825,1.10893632,651.57,650.58,0.30741799]
[1749432759025,1.10893632,651.56,650.58,0.30741799]
[1749432759327,1.10893632,651.62,650.58,0.30741799]
[1749432759526,1.10893632,651.61,650.58,0.30741799]
[1749432759726,1.10893632,651.6,650.58,0.30741799]
[1749432759927,1.10893632,651.59,650.58,0.30741799]
[1749432760127,1.10893632,651.58,650.58,0.30741799]
[1749432760325,1.10893632,651.57,650.58,0.30741799]
[1749432760525,1.10893632,651.56,650.58,0.30741799]
[1749432760728,1.10893632,651.55,650.58,0.30741799]
[1749432760929,1.10893632,651.54,650.58,0.30741799]
[1749432761129,1.10893632,651.53,650.58,0.30741799]
[1749432761327,1.10893632,651.62,650.58,0.30741799]
[1749432761531,1.10893632,651.61,650.58,0.30741799]
[1749432761830,1.10893632,651.6,650.58,0.30741799]
[1749432762031,1.10893632,651.59,650.58,0.30741799]
[1749432762327,1.10893632,651.58,650.58,0.30741799]
[1749432762527,1.10893632,651.57,650.58,0.30741799]
[1749432762727,1.10893632,651.62,650.58,0.30741799]
[1749432762930,1.10893632,651.61,650.58,0.30741799]
[1749432763231,1.10893632,651.6,650.58,0.30741799]
[1749432763429,1.10893632,651.59,650.58,0.30741799]
[1749432763628,1.10893632,651.58,650.58,0.30741799]
[1749432763933,1.10893632,651.62,650.58,0.30741799]
[1749432764133,1.10893632,651.61,650.58,0.30741799]
[1749432764333,1.10893632,651.6,650.58,0.30741799]
[1749432764629,0.26713441,651.63,650.58,0.30741799]
[1749432764834,0.57405705,651.63,650.58,0.30741799]
[1749432773539,0.30692735,651.62,650.5,3.82530838]
[1749432774743,0.30692735,651.62,650.55,3.82530838]
[1749432775144,0.30692735,651.62,650.45,3.82530838]
[1749432775645,0.30692735,651.62,650.44,3.82530838]
[1749432776046,0.30692735,651.62,650.43,3.82530838]
[1749432776346,0.30692735,651.62,650.46,3.82530838]
[1749432777346,0.30692735,651.62,650.52,3.82530838]
[1749432778242,0.30692735,651.62,650.51,3.82530838]
[1749432780945,0.26726571,651.35,650.51,3.82530838]
[1749432781545,0.26726571,651.35,650.28,3.82530838]
[1749432781950,0.26726571,651.35,650.27,3.82530838]
[1749432783046,0.26726571,651.35,650.26,3.82530838]
[1749432783447,0.26726571,651.35,650.27,3.82530838]
[1749432783951,0.26726571,651.35,650.26,3.82530838]
[1749432785048,0.26726571,651.35,650.25,3.82530838]
[1749432786150,0.26726571,651.35,650.23,0.26728316]
[1749432786151,0.26726571,651.35,650.24,3.82530838]